Cogmind - Beta 11 X6 @@@ ROGUE MODE // 2021.08.09 @ 21:54:51 Player: Olga Result: Destroyed by G-47 Trooper with Particle Gun Performance ------------- Evolutions (0) 0 Regions Visited (2) 400 Robots Destroyed (18) 90 Value Destroyed (394) 394 Prototype IDs (0) 0 Alien Tech Used (0) 0 Bonus (0) 0 TOTAL SCORE: 884 Bonus ------- None Cogmind --------- Core Integrity 0/250 Matter 300/300 Energy 100/100 System Corruption 0% Temperature Cool (9) Movement Rolling (80) Location -10/Mines Parts ------- > --- POWER (1) -------- (None) > --- PROPULSION (2) --- Wheel Wheel > --- UTILITY (2) ------ Small Storage Unit > --- WEAPON (2) ------- (None) > --- INVENTORY (8) ---- Ion Engine Light Treads Light Treads Aluminum Leg Hardened Light Armor Plating Heavy Assault Rifle Peak State ------------ > --- POWER ------------ Light Ion Engine > --- PROPULSION ------- Aluminum Leg Aluminum Leg > --- UTILITY ---------- Small Storage Unit Shield Generator > --- WEAPON ----------- Heavy Assault Rifle Heavy Assault Rifle > --- INVENTORY -------- Light Ion Engine Light Ion Engine Light Treads Light Treads Wheel Wheel Hardened Light Armor Plating Heavy Assault Rifle [Rating: 11] Favorites ----------- Power Ion Engine Engine Ion Engine Propulsion Aluminum Leg Leg Aluminum Leg Wheel Wheel Utility Small Storage Unit Device Shield Generator Storage Small Storage Unit Weapon Heavy Assault Rifle Ballistic Gun Heavy Assault Rifle Build | -11 -10 -10 ------- Run | Scr Mat Min Slots Evolved . | . . . Power . | . . . Propulsion . | . . . Utility . | . . . Weapon . | . . . Parts Attached 10 | . 5 5 Power 2 | . 1 1 Engine 2 | . 1 1 Core . | . . . Reactor . | . . . Propulsion 5 | . 1 4 Treads . | . . . Leg 3 | . 1 2 Wheel 2 | . . 2 Hover . | . . . Flight . | . . . Utility 1 | . 1 . Device 1 | . 1 . Storage . | . . . Processor . | . . . Hackware . | . . . Protection . | . . . Artifact . | . . . Weapon 2 | . 2 . Energy Gun . | . . . Energy Cannon . | . . . Ballistic Gun 2 | . 2 . Ballistic Cannon . | . . . Launcher . | . . . Special Weapon . | . . . Impact Weapon . | . . . Slashing Weapon . | . . . Piercing Weapon . | . . . Special Melee Weapon . | . . . Unidentified Prototypes . | . . . Parts Lost 7 | . 1 6 Power 3 | . 1 2 Propulsion 1 | . . 1 Utility 1 | . . 1 Weapon 2 | . . 2 Highest Loss Streak 3 | . 1 3 Average Slot Usage (%) 84 | . 94 75 Engine 12 | . 12 13 Leg 21 | . 28 16 Wheel 5 | . . 10 Device 6 | . 10 3 Storage 14 | . 14 14 Ballistic Gun 21 | . 28 16 Naked Turns . | . . . Heaviest Build 18 | 11 16 18 Greatest Support 20 | 20 20 20 Greatest Overweight (x) 1 | . . 1 Average Overweight (x) . | . . . Largest Inventory Capacity 8 | 8 8 8 Average Capacity 8 | 8 8 8 Most Carried 8 | 6 8 8 Average Carried 7 | 6 7 6 Final Capacity 8 | 8 8 8 Final Carried 8 | 6 8 6 Class Distribution -------------------- 100% | Mutant Dominant Class ---------------- Mutant | -10/Materials Mutant | -10/Mines Resources | -11 -10 -10 ----------- Run | Scr Mat Min Matter Collected 525 | 200 189 136 Remotely . | . . . Salvage Created 492 | . 306 186 Parts 37 | . 30 7 Haulers Intercepted . | . . . Recyclers Shooed . | . . . Parts Field Recycled . | . . . Retrieved Matter . | . . . Parts Self-Destructed . | . . . Prevented . | . . . Kills | -11 -10 -10 ------- Run | Scr Mat Min Combat Hostiles Destroyed 16 | . 12 4 Guns 16 | . 12 4 Classes Destroyed 4 | . 3 1 Worker 1 | . . 1 Builder 1 | . 1 . Swarmer 8 | . 8 . Grunt 8 | . 4 4 Best Kill Streak 6 | . 6 2 Combat Bots Only 6 | . 6 2 Max Kills in Single Turn 2 | . 2 2 Gunslinging 1 | . 1 . Exploded . | . . . Melee . | . . . Uniques/NPCs Destroyed . | . . . Combat | -11 -10 -10 -------- Run | Scr Mat Min Damage Taken 1157 | . 494 663 Core 258 | . 49 209 Absorbed by Shields 121 | . 64 57 Core Remaining (%) 100 | 100 . . Volleys Fired 44 | . 28 16 Largest 2 | . 2 2 Hottest 46 | . 46 46 Shots Fired 88 | . 56 32 Gun 88 | . 56 32 Cannon . | . . . Launcher . | . . . Special . | . . . Kinetic 88 | . 56 32 Thermal . | . . . Explosive . | . . . Electromagnetic . | . . . Robot Hit Streak 10 | . 4 10 Robot Miss Streak 4 | . 4 2 Penetration Max . | . . . Secondary Targets 5 | . 4 1 Max Gunslinging Chain 1 | . 1 1 Shots Hit Robots 49 | . 27 22 Core Hits 24 | . 16 8 Critical Kills . | . . . Critical Parts Destroyed . | . . . Critical Strikes . | . . . Melee Attacks . | . . . Impact . | . . . Slashing . | . . . Piercing . | . . . Sneak Attacks . | . . . Combat Hostiles . | . . . Follow-up Attacks . | . . . Damage Inflicted 732 | . 369 363 Guns 732 | . 369 363 Cannons . | . . . Explosions . | . . . Melee . | . . . Ramming . | . . . Kinetic 732 | . 369 363 Thermal . | . . . Explosive . | . . . Electromagnetic . | . . . Impact . | . . . Slashing . | . . . Piercing . | . . . Highest Corruption . | . . . Average Corruption . | . . . Corruption Purged . | . . . Overload Shots . | . . . Overflow Damage . | . . . Projectiles . | . . . Explosions . | . . . Melee . | . . . Knockbacks . | . . . Impact . | . . . Kinetic . | . . . Secondary . | . . . Self-Inflicted Damage . | . . . Shots . | . . . Rammed . | . . . Targets Rammed . | . . . Kicked . | . . . Crushed . | . . . Highest Temperature 15 | . . 15 Average Temperature 5 | . . 5 Received Heat Transfer 255 | . 52 203 Siege Activations . | . . . Robots Corrupted . | . . . Combat Hostiles . | . . . Parts Fried . | . . . Impact Corruptions . | . . . Robots Melted . | . . . Combat Hostiles . | . . . Parts Melted . | . . . Heat Transferred . | . . . Parts Sabotaged . | . . . Parts Stolen . | . . . Parts Stripped . | . . . Power Chain Reactions . | . . . Missiles Intercepted . | . . . Alert | -11 -10 -10 ------- Run | Scr Mat Min Peak Influence 305 | . 305 203 Initial 118 | . . 118 Average 167 | . 167 169 Maximum Alert Level 1 | . 1 1 Low Security (%) 73 | 100 66 78 Level 1 26 | . 33 21 Level 2 . | . . . Level 3 . | . . . Level 4 . | . . . Level 5 . | . . . High Security . | . . . Max Security . | . . . Squads Dispatched 1 | . 1 . Investigation 1 | . 1 . Extermination . | . . . Reinforcement . | . . . Assault . | . . . Garrison . | . . . Intercept . | . . . Construction Impeded . | . . . Haulers Reinforced . | . . . Active Scanning Responses . | . . . Cargo Convoy Interrupts . | . . . Stealth | -11 -10 -10 --------- Run | Scr Mat Min Distress Signals . | . . . Communications Jammed . | . . . Distress Signals . | . . . Times Spotted 35 | . 17 18 Peak Tracking Total 10 | . 6 10 Tactical Retreats 2 | . . 2 Traps | -11 -10 -10 ------- Run | Scr Mat Min Traps Triggered 1 | . 1 . Indirectly . | . . . Trap Hack Attempts . | . . . Triggered . | . . . Disarmed . | . . . Reprogrammed . | . . . Reused . | . . . Traps Extracted . | . . . Installed . | . . . Triggered . | . . . Machines | -11 -10 -10 ---------- Run | Scr Mat Min Machines Disabled 1 | . 1 . Max in Single Turn 1 | . 1 . Machines Sabotaged . | . . . Garrisons Compromised . | . . . Overloaded Fab Kills . | . . . Fab Network Shutdowns . | . . . Hacking | -11 -10 -10 --------- Run | Scr Mat Min Machines Accessed 1 | . 1 . Terminals 1 | . 1 . Fabricators . | . . . Repair Stations . | . . . Recycling Units . | . . . Scanalyzers . | . . . Garrison Access . | . . . Total Hacks 3 | . 3 . Successful 1 | . 1 . Failed 2 | . 2 . Catastrophic . | . . . Database Lockouts . | . . . Manual 3 | . 3 . Terminals 3 | . 3 . Fabricators . | . . . Repair Stations . | . . . Recycling Units . | . . . Scanalyzers . | . . . Garrison Access . | . . . Terminal Hacks . | . . . Fabricator Hacks . | . . . Repair Station Hacks . | . . . Recycling Unit Hacks . | . . . Scanalyzer . | . . . Garrison Access Hacks . | . . . Unauthorized Hacks 1 | . 1 . Terminals 1 | . 1 . Assimilate 1 | . 1 . Fabricators . | . . . Repair Stations . | . . . Recycling Units . | . . . Scanalyzers . | . . . Garrison Access . | . . . Data Cores Recovered . | . . . Used . | . . . Hacking Detections 1 | . 1 . Full Trace Events . | . . . Feedback Events . | . . . Feedback Blocked . | . . . Robot Schematics Acquired . | . . . Robots Built . | . . . Matter . | . . . Time . | . . . Total Robot Build Rating . | . . . Part Schematics Acquired . | . . . Parts Built . | . . . Matter . | . . . Time . | . . . Total Part Build Rating . | . . . Parts Repaired . | . . . Time . | . . . Parts Recycled . | . . . Recycled Matter . | . . . Retrieved Matter . | . . . Retrieved Components . | . . . Parts Scanalyzed . | . . . Part Schematics Acquired . | . . . Parts Damaged . | . . . Bothacking | -11 -10 -10 ------------ Run | Scr Mat Min Used RIF Installer . | . . . Robots Hacked . | . . . Non-combat . | . . . Combat . | . . . Robot Hacks Applied . | . . . Relay Couplers Released . | . . . Robots Rewired . | . . . Allies Hacked . | . . . Hacks Repelled . | . . . Allies | -11 -10 -10 -------- Run | Scr Mat Min Total Allies 1 | . 1 . Largest Group 1 | . 1 1 Highest-Rated Group 10 | . 10 7 Highest-Rated Ally 10 | . 10 7 Total Orders . | . . . Ally Attacks . | . . . Total Damage . | . . . Kills . | . . . Allies Corrupted . | . . . Allies Melted . | . . . Intel | -11 -10 -10 ------- Run | Scr Mat Min Robot Analysis Total . | . . . Derelict Logs Recovered 1 | . . 1 Drone Launches . | . . . Drone Recoveries . | . . . Exploration | -11 -10 -10 ------------- Run | Scr Mat Min Turns Passed 522 | 3 233 286 Spaces Moved 354 | 3 117 234 Core . | . . . Treads . | . . . Legs 216 | 3 117 96 Wheels 138 | . . 138 Hover . | . . . Flight . | . . . Fastest Speed 80 | 120 120 80 Average Speed 104 | 120 120 97 Slowest Speed 200 | 120 120 200 Overloaded Moves . | . . . Propulsion Burnouts . | . . . Robots Hopped . | . . . Cave-ins Triggered . | . . . Exploration Rate (%) 32 | 2 27 68 Regions Visited 2 Branch Regions 1 Pre-discovered Areas . | . . . Known Exits Taken . | . . . Unknown Exits Taken 2 | 1 1 . Scrap Searched 1 | . . 1 Spaces Dug . | . . . Terrain Destroyed . | . . . Melee . | . . . Projectile . | . . . AOE . | . . . Terrain Rammed . | . . . Walls Destroyed . | . . . Machines Disabled . | . . . Actions | -11 -10 -10 --------- Run | Scr Mat Min Total 424 | 2 160 262 Wait 3 | . . 3 Move 352 | 2 116 234 Hop . | . . . Pick Up 7 | . 6 1 Fast Attach . | . . . Attach 5 | . 2 3 Detach . | . . . Swap 5 | . 3 2 Drop 8 | . 5 3 Fire 44 | . 28 16 Melee . | . . . Ram . | . . . Kick . | . . . Crush . | . . . Escape Stasis . | . . . Rewire . | . . . Trap . | . . . Miscellaneous . | . . . Route ------- -11/Scrapyard -10/Materials -10/Mines History --------- Turn | Location | Event 1 | -11/Scrapyard | Discovered new exit (range 3) 4 | -11/Scrapyard | Entered Materials 190 | -10/Materials | Discovered new exit (range 16) 237 | -10/Materials | Entered Mines 237 | -10/Mines | Accompanied by 1 ally 316 | -10/Mines | Build established: Mutant 360 | -10/Mines | Assembled infested the area 365 | -10/Mines | Assisted by a Guerilla fighting off Assembled 401 | -10/Mines | Core integrity fell below 50% 405 | -10/Mines | Core integrity fell below 20% 432 | -10/Mines | Lost 3 parts (1n2w) 523 | -10/Mines | Destroyed by G-47 Trooper with Particle Gun Last Messages --------------- 00408_ as-98814 destroyed. 00410_ Dropped Aluminum Leg. 00410_ R-06 Scavenger destroyed. 00413_ as-94737 destroyed. 00414_ K-01 Serf collects debris. 00474_ Searching scrap... 00474_ Found Seismic Analyzer. 00474_ Found Hover Unit. 00474_ Found Sml. Storage Unit. 00474_ Found 36 Matter. 00475_ Acquired 20 matter. 00491_ T-07 Excavator is excavating. 00492_ U-05 Engineer lays Concrete. 00494_ T-07 Excavator is excavating. 00495_ U-05 Engineer builds a Wall. 00496_ T-07 Excavator is excavating. 00508_ K-01 Serf collects debris. 00512_ Acquired derelict log, extracted data. Data stored: Storage entrances (x1). 00521_ Ion Engine destroyed. Map ----- +----------------------------------------------------+ | ?????????## ##?????????????????? | | ?????????## #???# ???????????? | | ?????????# ##?## ???????????# | | ?####???## ###?# ??????????? ### | | ## #### ##??# ???????????????## | | # ##?# ?????????????????? | | # ## #???????? ??? ?????# ? | | ?# #????????# ??? ??????? ??? | | ?####### #????????# ?## ?#????? ??? | | ???????## ##????????# ? #???## ??? | | ????????## ##????????## ? ##??# ??? | | ?????????## ###????????## # # #??# #??? | | ??????????### ####??????????# ???# #??? | | ????????????# #?????????????? ???# #??? | | ????????????# #??????????????? ????# #### | | ????????????# #???????????????# ?????# | | ????????????# #??????????????## #?????# | | ????????????# #??????????????# ???##### #### | | ????????????# #??????????????# #??## ##? | | ????????????# #???????????????# #### #? | | ????????????# #???????????????# ## | | ????????????# #???????##??????# | | ????????????# ##???####T####### ##### ## | | ????????????# #???# ## #???## ##? | | ????????????### #???# gg## ## #????## #?? | | ??????????????# #???#""" @ ## #?????# #? | | ??????????????# ##??#""" ##### #????# # | | ?????????????## ##?#""" #???## #????# | | ????????????## #?#""" #????# ##????## | | ????????????# #?# #????# #??????# # | | ????""" ##### ##########????# #??????# ## | | ????"""% %= #########????# #??????# #? | | ????""" ######= #??????# #? | | ?????????????##! #??????? ? | | ??????????????#################?####??????? ? | | ??????????????????????????????????????????? #??? | | ????????????????????????????????????????????#????? | | ?????????????????????????????????????????????????? | | ?????????????????????????????????????????????????? | | | | | | | | | | | | | | | | | | | | | | | +----------------------------------------------------+ Best States ------------- Heat Dissipation 25 Energy Generation 10 Energy Capacity 250 Matter Stores 300 Matter Capacity 300 Sight Range 16 Terrain Scan Density 10 Evasion (%) 55 Item Schematics ----------------- None Robot Schematics ------------------ None Fabricated ------------ Nothing Alien Tech Used ----------------- None Achievements -------------- None Challenges ------------ None Game ------ Seed WeightWeldingShotgun Manual? 0 Play Time 00:08:38 Cumulative 54.6 hours Start 2021.08.09 @ 21:48:38 End 2021.08.09 @ 21:54:51 Sessions 1 Manual Loads 0 Difficulty Rogue Special Mode None Game No. 64 Rogue 64 Adventurer 0 Explorer 0 Win Type - Total 0 Types 0/0/0/0/0/0/0/0/0 Lore% 46 Gallery% 42 Achievement% 35 Wizard Run 0 Options --------- ASCII 1 Keyboard 0 Movement Vi Keybinds 0 Fullscreen 2 Font 18/SmallcapsGlow Map View 76x50 Tactical HUD 1 Map Filters NONE Filters NONE Steam 1 RUN: 99c17f16-3712-4756-a5ea-12851364467d